Workbook

Sheet TDSheet
A1: Школа | C1: ГБОУ "Заинская школа №9 для детей с ограниченными возможностями здоровья" | F1: Утвердил: | G1: должность | H1: Директор
A2: Типовое примерное меню приготавливаемых блюд | G2: фамилия | H2: Мойкина Г.В.
A3: Возрастная категория | E3: с 12 лет и старше | G3: дата | H3: 27 | I3: 03 | J3: 2026
H4: день | I4: месяц | J4: год
A5: Неделя | B5: День недели | C5: Прием пищи | D5: Раздел меню | E5: Блюда | F5: Вес блюда, г | G5: Белки | H5: Жиры | I5: Углеводы | J5: Калорийность | K5: № рецептуры | L5: Цена
A6: 1 | B6: 1 | C6: Завтрак | D6: Фрукты | E6: Десерт фруктовый "Яблоко" | F6: 150.00 | G6: 0.60 | H6: 0.60 | I6: 13.50 | J6: 61.80 | K6: ТТК-495н
D7: Гор.блюдо | E7: Каша молочная мультизлаковая (вязкая) с маслом | F7: 205.00 | G7: 6.78 | H7: 8.00 | I7: 27.99 | J7: 211.12 | K7: ТТК-360н
D8: Гор. напиток | E8: Кофейный напиток полусладкий | F8: 200.00 | G8: 3.02 | H8: 5.22 | I8: 15.90 | J8: 122.65 | K8: ТТК-343н
D9: Хлеб | E9: Бутерброд с маслом с сыром | F9: 56.25 | G9: 2.63 | H9: 7.56 | I9: 15.39 | J9: 140.15 | K9: 3/04.
D10: итого | F10: =SUM(F6:F9) -> 611.25 | G10: =SUM(G6:G9) -> 13.03 | H10: =SUM(H6:H9) -> 21.38 | I10: 72.78 | J10: 535.72
A11: 1 | B11: 1 | C11: Обед | D11: Закуска | E11: Салат " Зайка" (капуста св., морковь св., яблоко, масло раст.)¹ | F11: 100 | G11: 1.62 | H11: 5.15 | I11: 10.92 | J11: 96.54 | K11: ТТК № 473
D12: Первое блюдо | E12: Суп картофельный с бобовыми с цыплятами | F12: 275 | G12: 11.01 | H12: 6.84 | I12: 19.86 | J12: 185.06 | K12: 139/04
D13: Второе блюдо | E13: Гуляш | F13: 100 | G13: 15.96 | H13: 5.87 | I13: 3.58 | J13: 131.02 | K13: 437/04
D14: Гарнир | E14: Макаронные изделия отварные | F14: 180 | G14: 6.43 | H14: 5.24 | I14: 43.85 | J14: 248.26 | K14: 516/04
D15: Напиток | E15: Компот "Плодово-ягодный" из изюма с блинчиком с вареной сгущенкой | F15: 200 | G15: 4.2 | H15: 9.52 | I15: 41.66 | J15: 269.1 | K15: ТТК-268н, ТТК218н
D16: Хлеб | E16: Хлеб белый | F16: 31.25 | G16: 2.53 | H16: 0.31 | I16: 15.25 | J16: 73.94
D17: Хлеб | E17: Хлеб "Дарницкий" | F17: 44.6 | G17: 2.94 | H17: 0.49 | I17: 18.29 | J17: 89.33
D18: итого | F18: =SUM(F11:F17) -> 930.85 | G18: =SUM(G11:G17) -> 44.69 | H18: 33.42 | I18: 153.41 | J18: 1093.25
A19: 1 | B19: 1 | C19: Итого за день: | F19: =F10+F18 -> 1542.10 | G19: =G10+G18 -> 57.72 | H19: 54.80 | I19: 226.19 | J19: 1628.97 | L19: 226.42
A20: 1 | B20: 2 | C20: Завтрак | D20: Фрукты | E20: Десерт фруктовый "Апельсин" | F20: 150.00 | G20: 1.35 | H20: 0.00 | I20: 12.60 | J20: 55.80 | K20: ТТК-495н
D21: Гор.блюдо | E21: Омлет натуральный с маслом | F21: 205.00 | G21: 19.28 | H21: 27.90 | I21: 2.94 | J21: 339.95 | K21: 340/04
D22: Гор. напиток | E22: Чай с лимоном | F22: 207.00 | G22: 0.27 | H22: 0.06 | I22: 15.28 | J22: 62.73 | K22: 686/04
D23: Хлеб | E23: Бутерброд с маслом | F23: 41.25 | G23: 2.63 | H23: 7.56 | I23: 15.39 | J23: 140.15 | K23: 1/04
D24: итого | F24: =SUM(F20:F23) -> 603.25 | G24: =SUM(G20:G23) -> 23.53 | H24: 35.52 | I24: 46.21 | J24: 598.63
A25: 1 | B25: 2 | C25: Обед | D25: Закуска | E25: Салат " Аппетитный" ( морковь св., горошек конс., сыр, масло раст.)¹ | F25: 100 | G25: 2.27 | H25: 5.17 | I25: 8.4 | J25: 89.22 | K25: ТТК №136
D26: Первое блюдо | E26: Борщ из свежей капусты с картофелем с мясными фрикадельками "Останкинскими" со сметаной | F26: 280 | G26: 8.17 | H26: 9.15 | I26: 14.02 | J26: 171.09 | K26: 110/04
D27: Второе блюдо | E27: Плов "Золотой петушок" | F27: 200 | G27: 27.35 | H27: 11.69 | I27: 40.01 | J27: 374.68 | K27: ТТК-417
D28: Напиток | E28: Напиток "Плодово-ягодный" из сухофруктов | F28: 200 | G28: 0.5 | H28: 0.02 | I28: 19.43 | J28: 79.92 | K28: ТТК-257н
D29: Хлеб | E29: Хлеб белый | F29: 31.25 | G29: 2.53 | H29: 0.31 | I29: 15.25 | J29: 73.94
D30: Хлеб | E30: Хлеб "Дарницкий" | F30: 44.6 | G30: 2.94 | H30: 0.49 | I30: 18.29 | J30: 89.33
D31: итого | F31: =SUM(F25:F30) -> 855.85 | G31: =SUM(G25:G30) -> 43.76 | H31: =SUM(H25:H30) -> 26.83 | I31: =SUM(I25:I30) -> 115.40 | J31: =SUM(J25:J30) -> 878.18
A32: 1 | B32: 2 | C32: Итого за день: | F32: =F24+F31 -> 1459.10 | G32: =G24+G31 -> 67.29 | H32: =H24+H31 -> 62.35 | I32: =I24+I31 -> 161.61 | J32: =J24+J31 -> 1476.81 | L32: 226.42
A33: 1 | B33: 3 | C33: Завтрак | D33: Хол.блюдо | E33: Яйцо вареное | F33: 1 шт | G33: 5.52 | H33: 5.04 | I33: 0.00 | J33: 67.44 | K33: 337/04
D34: Гор.блюдо | E34: Суп молочный с крупой "Геркулес" | F34: 250 | G34: 5.37 | H34: 5.48 | I34: 16.52 | J34: 136.84 | K34: 161/04
D35: Гор. напиток | E35: Какао с молоком полусладкое | F35: 200 | G35: 3.39 | H35: 2.8 | I35: 16.98 | J35: 106.66 | K35: ТТК-198н
D36: Хлеб | E36: Бутерброд с маслом с сыром | F36: 61.25 | G36: 2.63 | H36: 7.56 | I36: 15.39 | J36: 140.15 | K36: 3/04.
D37: итого | F37: 559.25 | G37: =SUM(G33:G36) -> 16.91 | H37: 20.88 | I37: 48.89 | J37: 451.09
A38: 1 | B38: 3 | C38: Обед | D38: Закуска | E38: Винегрет из овощей (картофель отв., свекла отв., морковь отв., сол. огурцы конс., лук репч., масло раст.)¹ | F38: 100 | G38: 2.38 | H38: 7.09 | I38: 8.26 | J38: 106.4 | K38: ТТК-359н
D39: Первое блюдо | E39: Суп-лапша домашняя с цыплятами | F39: 275 | G39: 7.81 | H39: 7.06 | I39: 13.56 | J39: 149.08 | K39: 148/2004
D40: Второе блюдо | E40: Палочки рыбо-крупяные из минтая с овощами припущенными (зелёный горошек) | F40: 62 | G40: 10.82 | H40: 7.84 | I40: 20.45 | J40: 195.6 | K40: ТТК 491н
D41: Гарнир | E41: Пюре картофельное | F41: 180 | G41: 3.97 | H41: 5.89 | I41: 26.55 | J41: 175.11 | K41: 520/04
D42: Напиток | E42: Компот "Плодово-ягодный" из свежих яблок с пряником | F42: 230 | G42: 1.94 | H42: 1.2 | I42: 46.95 | J42: 206.38 | K42: ТТК-271н
D43: Хлеб | E43: Хлеб белый | F43: 31.25 | G43: 2.53 | H43: 0.31 | I43: 15.25 | J43: 73.94
D44: Хлеб | E44: Хлеб "Дарницкий" | F44: 44.6 | G44: 2.94 | H44: 0.49 | I44: 18.29 | J44: 89.33
D45: итого | F45: =SUM(F38:F44) -> 922.85 | G45: =SUM(G38:G44) -> 32.39 | H45: 29.88 | I45: 149.31 | J45: 995.84
A46: 1 | B46: 3 | C46: Итого за день: | F46: =F37+F45 -> 1482.10 | G46: =G37+G45 -> 49.30 | H46: 50.76 | I46: 198.20 | J46: 1446.93 | L46: 226.42
A47: 1 | B47: 4 | C47: Завтрак | D47: Фрукты | E47: Десерт фруктовый "Яблоко" | F47: 150.00 | G47: 0.60 | H47: 0.60 | I47: 13.50 | J47: 61.80 | K47: ТТК-495н
D48: Гор.блюдо | E48: Творожник "Зебра" с повидлом | F48: 200 | G48: 27.52 | H48: 11.15 | I48: 54.93 | J48: 430.15 | K48: ТТК - 341к
D49: Гор. напиток | E49: Чай полусладкий | F49: 200 | G49: 0.2 | H49: 0.05 | I49: 5.06 | J49: 21.5 | K49: ТТК-475
D50: Хлеб | E50: Бутерброд с маслом | F50: 41.25 | G50: 2.63 | H50: 7.56 | I50: 15.39 | J50: 140.15 | K50: 1/04
D51: итого | F51: =SUM(F47:F50) -> 591.25 | G51: =SUM(G47:G50) -> 30.95 | H51: =SUM(H47:H50) -> 19.36 | I51: 88.88 | J51: 653.60
A52: 1 | B52: 4 | C52: Обед | D52: Закуска | E52: Салат из свеклы отварной¹ | F52: 100 | G52: 1.82 | H52: 6.12 | I52: 10.67 | J52: 104.97 | K52: 52/11
D53: Первое блюдо | E53: Суп из овощей с цыплятами со сметаной | F53: 280 | G53: 7.52 | H53: 7.34 | I53: 12.56 | J53: 146.4 | K53: 135/04
D54: Второе блюдо | E54: Зразы "Любимые " с сыром с овощами припущенными (мексиканская смесь) | F54: 100 | G54: 10.33 | H54: 18.26 | I54: 7.54 | J54: 235.79 | K54: ТТК№-200н
D55: Гарнир | E55: Каша гречневая вязкая | F55: 180 | G55: 5.57 | H55: 5.7 | I55: 29.83 | J55: 192.97 | K55: 510/04
D56: Напиток | E56: Напиток "Плодово-ягодный" из урюка | F56: 200 | G56: 0.51 | H56: 0.08 | I56: 19.38 | J56: 80.23 | K56: ТТК-258к
D57: Хлеб | E57: Хлеб белый | F57: 31.25 | G57: 2.53 | H57: 0.31 | I57: 15.25 | J57: 73.94
D58: Хлеб | E58: Хлеб "Дарницкий" | F58: 44.6 | G58: 2.94 | H58: 0.49 | I58: 18.29 | J58: 89.33
D59: итого | F59: =SUM(F52:F58) -> 935.85 | G59: =SUM(G52:G58) -> 31.22 | H59: 38.30 | I59: 113.52 | J59: 923.63
A60: 1 | B60: 4 | C60: Итого за день: | F60: =F51+F59 -> 1527.10 | G60: =G51+G59 -> 62.17 | H60: 57.66 | I60: 202.40 | J60: 1577.23 | L60: 226.42
A61: 1 | B61: 5 | C61: Завтрак | D61: Фрукты | E61: Десерт фруктовый "Апельсин" | F61: 150.00 | G61: 1.35 | H61: 0.00 | I61: 12.60 | J61: 55.80 | K61: ТТК-495н
D62: Гор.блюдо | E62: Каша молочная вязкая "Дружба" с маслом | F62: 205 | G62: 7.17 | H62: 7.04 | I62: 43.24 | J62: 264.97 | K62: ТТК №550н
D63: Гор. напиток | E63: Чай полусладкий с молоком | F63: 200 | G63: 1.65 | H63: 1.3 | I63: 7.46 | J63: 48.15 | K63: ТТК-446
D64: Хлеб | E64: Бутерброд с маслом с сыром | F64: 56.25 | G64: 2.63 | H64: 7.56 | I64: 15.39 | J64: 140.15 | K64: 3/04.
D65: итого | F65: =SUM(F62:F64) -> 461.25 | G65: =SUM(G61:G64) -> 12.80 | H65: 15.90 | I65: 78.69 | J65: 509.07
A66: 1 | B66: 5 | C66: Обед | D66: Закуска | E66: Салат из белокочанной капусты¹ | F66: 100 | G66: 1.9 | H66: 5.1 | I66: 10.31 | J66: 94.81 | K66: 20/2010
D67: Первое блюдо | E67: Рассольник ленинградский с мясными фрикадельками "Останкинскими" со сметаной | F67: 280 | G67: 9.1 | H67: 9.34 | I67: 18.46 | J67: 194.27 | K67: 132/2004
D68: Второе блюдо | E68: Мякоть птицы "Лакомый кусочек" с овощами припущенными (кукуруза) | F68: 100 | G68: 38.15 | H68: 8.64 | I68: 4.31 | J68: 247.6 | K68: ТТК№230н
D69: Гарнир | E69: Рагу овощное | F69: 180 | G69: 3.76 | H69: 7.96 | I69: 19.84 | J69: 166.07 | K69: 541/04
D70: Напиток | E70: Компот "Плодово-ягодный" ассорти | F70: 200 | G70: 0.00 | H70: 0.00 | I70: 14.97 | J70: 59.88 | K70: ТТК-356н
D71: Хлеб | E71: Хлеб белый | F71: 31.25 | G71: 2.53 | H71: 0.31 | I71: 15.25 | J71: 73.94
D72: Хлеб | E72: Хлеб "Дарницкий" | F72: 44.6 | G72: 2.94 | H72: 0.49 | I72: 18.29 | J72: 89.33
D73: Сладкое | E73: Кекс для детского питания | F73: 28 | G73: 1.68 | H73: 6.16 | I73: 15.68 | J73: 124.88
D74: итого | F74: =SUM(F66:F73) -> 964 | G74: =SUM(G66:G73) -> 60 | H74: 38 | I74: 117 | J74: 1051
A75: 1 | B75: 5 | C75: Итого за день: | F75: =F65+F74 -> 1425.10 | G75: =G65+G74 -> 72.86 | H75: 53.90 | I75: 195.80 | J75: 1559.85 | L75: 226.42
A76: 2 | B76: 1 | C76: Завтрак | D76: Фрукты | E76: Десерт фруктовый "Яблоко" | F76: 150.00 | G76: 0.60 | H76: 0.60 | I76: 13.50 | J76: 61.80 | K76: ТТК-495н
D77: Гор.блюдо | E77: Каша молочная пшеничная с маслом | F77: 205 | G77: 8.01 | H77: 6.78 | I77: 37.54 | J77: 243.26 | K77: 311/04
D78: Гор. напиток | E78: Какао с молоком полусладкое | F78: 200 | G78: 3.39 | H78: 2.8 | I78: 16.98 | J78: 106.66 | K78: ТТК-198н
D79: Хлеб | E79: Бутерброд с маслом | F79: 41.25 | G79: 2.63 | H79: 7.56 | I79: 15.39 | J79: 140.15 | K79: 1/04
D80: итого | F80: =SUM(F76:F79) -> 596.25 | G80: =SUM(G76:G79) -> 14.63 | H80: =SUM(H76:H79) -> 17.74 | I80: 83.41 | J80: 551.87
A81: 2 | B81: 1 | C81: Обед | D81: Закуска | E81: Салат из свежих огурцов¹ | F81: 100 | G81: 0.78 | H81: 6.09 | I81: 2.42 | J81: 67.61 | K81: 13/10
D82: Первое блюдо | E82: Суп картофельный с рыбными консервами | F82: 275 | G82: 6.2 | H82: 5 | I82: 19.97 | J82: 149.66 | K82: 133/04
D83: Второе блюдо | E83: Мясо "Нежное" в соусе | F83: 100 | G83: 16.13 | H83: 13.28 | I83: 3.68 | J83: 198.76 | K83: ТТК-992
D84: Гарнир | E84: Макаронные изделия отварные | F84: 180 | G84: 6.43 | H84: 5.24 | I84: 43.85 | J84: 248.26 | K84: 516/04
D85: Напиток | E85: Компот "Плодово-ягодный" из изюма с печеньем сахарным | F85: 218 | G85: 2.97 | H85: 6.3 | I85: 39.5 | J85: 226.6 | K85: ТТК-268н
D86: Хлеб | E86: Хлеб белый | F86: 31.25 | G86: 2.53 | H86: 0.31 | I86: 15.25 | J86: 73.94
D87: Хлеб | E87: Хлеб "Дарницкий" | F87: 44.6 | G87: 2.94 | H87: 0.49 | I87: 18.29 | J87: 89.33
D88: итого | F88: =SUM(F81:F87) -> 948.85 | G88: =SUM(G81:G87) -> 37.98 | H88: 36.71 | I88: 142.96 | J88: 1054.16
A89: 2 | B89: 1 | C89: Итого за день: | F89: =F80+F88 -> 1545.10 | G89: =G80+G88 -> 52.61 | H89: 54.45 | I89: =I80+I88 -> 226.37 | J89: 1606.03 | L89: 226.42
A90: 2 | B90: 2 | C90: Завтрак | D90: Фрукты | E90: Десерт фруктовый "Апельсин" | F90: 150.00 | G90: 1.35 | H90: 0.00 | I90: 12.60 | J90: 55.80 | K90: ТТК-495н
D91: Гор.блюдо | E91: Запеканка из творога "Ягодка" со сгущенным молоком | F91: 200 | G91: 31.66 | H91: 17.37 | I91: 61.3 | J91: 528.18 | K91: ТТК - 521н
D92: Гор. напиток | E92: Чай полусладкий | F92: 200 | G92: 0.2 | H92: 0.05 | I92: 5.06 | J92: 21.5 | K92: ТТК-475
D93: Хлеб | E93: Бутерброд с маслом с сыром | F93: 56.25 | G93: 2.63 | H93: 7.56 | I93: 15.39 | J93: 140.15 | K93: 3/04.
D94: итого | F94: =SUM(F91:F93) -> 456.25 | G94: =SUM(G90:G93) -> 35.84 | H94: =SUM(H90:H93) -> 24.98 | I94: 94.35 | J94: 745.63
A95: 2 | B95: 2 | C95: Обед | D95: Закуска | E95: Маринад овощной с томатом¹ | F95: 100 | G95: 1.28 | H95: 10.08 | I95: 9 | J95: 131.83 | K95: 612/04
D96: Первое блюдо | E96: Борщ из свежей капусты с картофелем с мясными фрикадельками "Останкинскими" со сметаной | F96: 280 | G96: 8.17 | H96: 9.15 | I96: 14.02 | J96: 171.09 | K96: 110/04
D97: Второе блюдо | E97: Котлеты "Крестьянские" с овощами припущенными (горошек зеленый) | F97: 100 | G97: 11.24 | H97: 12.44 | I97: 15.2 | J97: 217.69 | K97: ТТК-202н
D98: Гарнир | E98: Пюре картофельное | F98: 180 | G98: 3.97 | H98: 5.89 | I98: 26.55 | J98: 175.11 | K98: 520/04
D99: Напиток | E99: Компот "Плодово-ягодный" из свежих яблок | F99: 200 | G99: 0.18 | H99: 0.18 | I99: 19.06 | J99: 78.58 | K99: ТТК-271н
D100: Хлеб | E100: Хлеб белый | F100: 31.25 | G100: 2.53 | H100: 0.31 | I100: 15.25 | J100: 73.94
D101: Хлеб | E101: Хлеб "Дарницкий" | F101: 44.6 | G101: 2.94 | H101: 0.49 | I101: 18.29 | J101: 89.33
D102: итого | F102: =SUM(F95:F101) -> 935.85 | G102: =SUM(G95:G101) -> 30.31 | H102: 38.54 | I102: 117.37 | J102: 937.57
A103: 2 | B103: 2 | C103: Итого за день: | F103: =F94+F102 -> 1392.10 | G103: =G94+G102 -> 66.15 | H103: 63.52 | I103: 211.72 | J103: 1683.20 | L103: 226.42
A104: 2 | B104: 3 | C104: Завтрак | D104: Фрукты | E104: Десерт фруктовый "Яблоко" | F104: 150.00 | G104: 0.60 | H104: 0.60 | I104: 13.50 | J104: 61.80 | K104: ТТК-495н
D105: Гор.блюдо | E105: Омлет с сыром с маслом | F105: 205 | G105: 24.81 | H105: 32.74 | I105: 2.69 | J105: 404.68 | K105: 342/2004
D106: Гор. напиток | E106: Чай с лимоном | F106: 207 | G106: 0.17 | H106: 0.03 | I106: 15.24 | J106: 61.97 | K106: 377/11
D107: Хлеб | E107: Бутерброд с маслом | F107: 41.25 | G107: 2.63 | H107: 7.56 | I107: 15.39 | J107: 140.15 | K107: 1/04
D108: итого | F108: =SUM(F104:F107) -> 603.25 | G108: =SUM(G104:G107) -> 28.21 | H108: 40.93 | I108: 46.82 | J108: 668.60
A109: 2 | B109: 3 | C109: Обед | D109: Закуска | E109: Салат "Капуста квашеная" | F109: 100 | G109: 1.76 | H109: 5.02 | I109: 8.51 | J109: 86.22 | K109: ТТК-357н
D110: Первое блюдо | E110: Суп картофельный с бобовыми с цыплятами | F110: 275 | G110: 11.01 | H110: 6.84 | I110: 19.86 | J110: 185.06 | K110: 139/04
D111: Второе блюдо | E111: Минтай запеченный с овощами припущенными (кукуруза) | F111: 100 | G111: 19.08 | H111: 3.39 | I111: 6.78 | J111: 133.91 | K111: ТТК 289н
D112: Гарнир | E112: Каша рисовая вязкая | F112: 180 | G112: 2.77 | H112: 4.95 | I112: 27.57 | J112: 165.94 | K112: 510/04
D113: Напиток | E113: Напиток "Плодово-ягодный" из сухофруктов с блинчиками с вареной сгущенкой | F113: 263 | G113: 4.69 | H113: 9.54 | I113: 40.43 | J113: 266.37 | K113: ТТК-257н, ТТК218н
D114: Хлеб | E114: Хлеб белый | F114: 31.25 | G114: 2.53 | H114: 0.31 | I114: 15.25 | J114: 73.94
D115: Хлеб | E115: Хлеб "Дарницкий" | F115: 44.6 | G115: 2.94 | H115: 0.49 | I115: 18.29 | J115: 89.33
D116: итого | F116: =SUM(F109:F115) -> 993.85 | G116: =SUM(G109:G115) -> 44.78 | H116: 30.54 | I116: 136.69 | J116: 1000.77
A117: 2 | B117: 3 | C117: Итого за день: | F117: =F108+F116 -> 1597.10 | G117: =G108+G116 -> 72.99 | H117: 71.47 | I117: 183.51 | J117: 1669.37 | L117: 226.42
A118: 2 | B118: 4 | C118: Завтрак | D118: Фрукты | E118: Десерт фруктовый "Апельсин" | F118: 150.00 | G118: 1.35 | H118: 0.00 | I118: 12.60 | J118: 55.80 | K118: ТТК-495н
D119: Гор.блюдо | E119: Каша молочная геркулесовая с маслом | F119: 205 | G119: 8.01 | H119: 8.75 | I119: 32.98 | J119: 242.7 | K119: 302/04
D120: Гор. напиток | E120: Кофейный напиток полусладкий | F120: 200 | G120: 3.02 | H120: 5.22 | I120: 15.9 | J120: 122.65 | K120: ТТК-343н
D121: Хлеб | E121: Бутерброд с маслом с сыром | F121: 56.25 | G121: 2.63 | H121: 7.56 | I121: 15.39 | J121: 140.15 | K121: 3/04.
D122: итого | F122: =SUM(F118:F121) -> 611.25 | G122: =SUM(G118:G121) -> 15.01 | H122: =SUM(H118:H121) -> 21.53 | I122: 76.87 | J122: 561.30
A123: 2 | B123: 4 | C123: Обед | D123: Закуска | E123: Салат "Пёстрый" (свекла отв., фасоль красная, яблоки св.,масло раст.)¹ | F123: 100 | G123: 3.79 | H123: 4.43 | I123: 16.28 | J123: 120.15 | K123: ТТК 994
D124: Первое блюдо | E124: Щи из свежей капусты с картофелем с мясными фрикадельками "Останкинскими"со сметаной | F124: 280 | G124: 8.21 | H124: 9.17 | I124: 10.18 | J124: 156.12 | K124: 124/2004
D125: Второе блюдо | E125: Биточки "Рябушка" с овощами припущенными(мексиканская смесь) | F125: 100 | G125: 11.21 | H125: 16.58 | I125: 15.46 | J125: 255.87 | K125: ТТК-85н
D126: Гарнир | E126: Картофель "По-деревенски" | F126: 180 | G126: 5.26 | H126: 14.54 | I126: 42.84 | J126: 323.21 | K126: ТТК 11н
D127: Напиток | E127: Напиток "Плодово-ягодный" из урюка | F127: 200 | G127: 0.51 | H127: 0.08 | I127: 19.38 | J127: 80.23 | K127: ТТК-258к
D128: Хлеб | E128: Хлеб белый | F128: 31.25 | G128: 2.53 | H128: 0.31 | I128: 15.25 | J128: 73.94
D129: Хлеб | E129: Хлеб "Дарницкий" | F129: 44.6 | G129: 2.94 | H129: 0.49 | I129: 18.29 | J129: 89.33
D130: итого | F130: =SUM(F123:F129) -> 935.85 | G130: =SUM(G123:G129) -> 34.45 | H130: 45.60 | I130: 137.68 | J130: 1098.85
A131: 2 | B131: 4 | C131: Итого за день: | F131: =F122+F130 -> 1547.10 | G131: =G122+G130 -> 49.46 | H131: 67.13 | I131: 214.55 | J131: 1660.15 | L131: 226.42
A132: 2 | B132: 5 | C132: Завтрак | D132: Хол.блюдо | E132: Яйцо вареное | F132: 1 шт | G132: 5.52 | H132: 5.04 | I132: 0.00 | J132: 67.44 | K132: 337/04
D133: Гор.блюдо | E133: Суп молочный с рисом | F133: 250.00 | G133: 4.7 | H133: 4.73 | I133: 19.67 | J133: 139.99 | K133: 161/04
D134: Гор. напиток | E134: Чай полусладкий с молоком | F134: 200.00 | G134: 1.65 | H134: 1.3 | I134: 7.46 | J134: 48.15 | K134: ТТК-437
D135: Хлеб | E135: Бутерброд с маслом с сыром | F135: 61.25 | G135: 2.63 | H135: 7.56 | I135: 15.39 | J135: 140.15 | K135: 3/04.
D136: итого | F136: 559.25 | G136: =SUM(G132:G135) -> 14.50 | H136: =SUM(H132:H135) -> 18.63 | I136: 42.52 | J136: 395.73
A137: 2 | B137: 5 | C137: Обед | D137: Закуска | E137: Салат " Веснушка "(картофель отв., морковь отв., кукуруза конс., сол. огурцы конс., масло раст.)¹ | F137: 100 | G137: 2.02 | H137: 10.07 | I137: 9.4 | J137: 136.3 | K137: ТТК-390
D138: Первое блюдо | E138: Суп "Гречишное зернышко" с цыплятами | F138: 275 | G138: 8.17 | H138: 6.88 | I138: 20.57 | J138: 176.92 | K138: ТТК № 425
D139: Второе блюдо | E139: Фрикадельки "Особые" с соусом томатным | F139: 100 | G139: 5.35 | H139: 14.3 | I139: 8.75 | J139: 185.09 | K139: ТТК-652к
D140: Гарнир | E140: Пюре из бобовых "Янтарное" | F140: 180 | G140: 20.35 | H140: 5.98 | I140: 44.89 | J140: 314.78 | K140: ТТК-446
D141: Напиток | E141: Компот "Плодово-ягодный" ассорти | F141: 200 | G141: 0.01 | H141: 0.01 | I141: 16.66 | J141: 66.73 | K141: ТТК-356н
D142: Хлеб | E142: Хлеб белый | F142: 31.25 | G142: 2.53 | H142: 0.31 | I142: 15.25 | J142: 73.94
D143: Хлеб | E143: Хлеб "Дарницкий" | F143: 44.6 | G143: 2.94 | H143: 0.49 | I143: 18.29 | J143: 89.33
D144: Сладкое | E144: Кекс для детского питания | F144: 28 | G144: 1.68 | H144: 6.16 | I144: 15.68 | J144: 124.88
D145: итого | F145: =SUM(F137:F144) -> 958.85 | G145: =SUM(G137:G144) -> 43.05 | H145: 44.20 | I145: 149.49 | J145: 1167.97 | L145: 0
A146: 2 | B146: 5 | C146: Итого за день: | F146: =F136+F145 -> 1518.10 | G146: =G136+G145 -> 57.55 | H146: 62.83 | I146: 192.01 | J146: 1563.70 | L146: 226.42
C147: Среднее значение за период: | G147: 54.00 | H147: 55.20 | I147: 216.00 | J147: 1574.74
